bitfinex/quotes_SOLUSD_20220306
["timestamp","ask_amount","ask_price","bid_price","bid_amount"]
[1646596869563,5.851,85.503,85.421,116.2]
[1646596869564,1.56882769,85.497,85.43,17.5603]
[1646596869768,5.849,85.517,85.441,116.2]
[1646596869769,1.56882769,85.509,85.441,116.2]
[1646596869965,1.56882769,85.509,85.451,116.2]
[1646596870164,5.849,85.532,85.451,116.2]
[1646596870165,1.56882769,85.511,85.452,0.81144665]
[1646596870565,1.56882769,85.521,85.452,0.81144665]
[1646596870767,4.67973801,85.569,85.461,170.94766474]
[1646596870768,1.56882769,85.524,85.461,170.94766474]
[1646596870965,1.56882769,85.541,85.471,116.2]
[1646596871270,1.56882769,85.545,85.472,0.81144665]
[1646596871465,1.56882769,85.547,85.472,0.81144665]
[1646596871691,1.56882769,85.548,85.481,116.2]
[1646596871968,5.846,85.571,85.503,116.2]
[1646596872167,1.56882769,85.585,85.51,16.92]
[1646596872370,5.844,85.584,85.51,16.92]
[1646596872567,5.844,85.584,85.511,0.81144665]
[1646596872767,1.56882769,85.586,85.51,23.55]
[1646596872968,5.844,85.585,85.51,23.55]
[1646596873168,5.844,85.585,85.51,41.0889]
[1646596873367,5.844,85.588,85.51,41.0889]
[1646596873768,5.844,85.588,85.511,0.81144665]
[1646596873968,5.844,85.593,85.51,23.55]
[1646596874372,1.56882769,85.602,85.51,16.92]
[1646596874568,1.56882769,85.6,85.51,16.92]
[1646596874768,5.844,85.599,85.51,16.92]
[1646596874972,7.41282769,85.601,85.51,16.92]
[1646596875368,5.844,85.601,85.51,34.4605]
[1646596875569,7.41282769,85.601,85.51,34.4605]
[1646596875970,116.2,85.6,85.51,34.4605]
[1646596876271,1.56882769,85.592,85.502,47.75879348]
[1646596876570,17.5525,85.57,85.502,47.75879348]
[1646596876774,5.845,85.569,85.502,47.75879348]
[1646596876970,8.45063477,85.569,85.502,47.75879348]
[1646596877370,2.60563477,85.568,85.502,47.75879348]
[1646596877573,5.845,85.567,85.502,47.75879348]
[1646596878173,2.60563477,85.578,85.502,47.75879348]
[1646596878373,5.845,85.591,85.502,47.75879348]
[1646596878573,5.844,85.599,85.503,116.2]
[1646596878874,5.844,85.606,85.511,116.2]
[1646596879075,14.69509704,85.626,85.503,9.25]
[1646596879076,1.56882769,85.62,85.521,116.2]
[1646596879272,5.843,85.619,85.53,16.92]
[1646596879473,5.843,85.619,85.531,57.31002465]
[1646596879772,5.841,85.632,85.531,57.31002465]
[1646596879972,5.841,85.635,85.531,57.31002465]
[1646596880176,24.24138974,85.631,85.531,57.31002465]
[1646596880372,5.841,85.63,85.531,57.31002465]
[1646596880573,28.18287994,85.63,85.531,57.31002465]
[1646596880773,52.42426968,85.63,85.531,57.31002465]
[1646596880971,22.34187994,85.629,85.531,57.31002465]
[1646596881171,5.841,85.628,85.531,57.31002465]
[1646596881373,30.08238974,85.628,85.531,57.31002465]
[1646596881572,22.34187994,85.627,85.531,57.31002465]
[1646596881772,5.841,85.626,85.531,57.31002465]
[1646596882874,5.841,85.626,85.54,17.5348]
[1646596883076,5.841,85.626,85.54,34.4548]
[1646596883274,7.40982769,85.631,85.54,34.4548]
[1646596883474,5.841,85.631,85.54,34.4548]
[1646596883675,5.841,85.631,85.542,0.50194869]
[1646596883875,1.56882769,85.638,85.542,0.50194869]
[1646596884076,7.40982769,85.639,85.542,0.50194869]
[1646596884277,1.56882769,85.639,85.542,0.50194869]
[1646596884477,1.56882769,85.64,85.56,17.529]
[1646596884679,24.94751471,85.638,85.531,57.31002465]
[1646596884877,1.56882769,85.628,85.531,57.31002465]
[1646596885076,30.08238974,85.639,85.531,57.31002465]
[1646596885077,1.56882769,85.623,85.531,57.31002465]
[1646596885280,5.841,85.627,85.531,57.31002465]
[1646596885281,5.841,85.622,85.531,57.31002465]
[1646596885478,7.40982769,85.623,85.531,57.31002465]
[1646596885678,8.44663477,85.623,85.531,57.31002465]
[1646596886079,17.5382,85.62,85.531,57.31002465]
[1646596886278,1.56882769,85.618,85.531,57.31002465]
[1646596886479,5.841,85.617,85.531,57.31002465]
[1646596886899,1.56882769,85.61,85.531,57.31002465]
[1646596887200,1.56882769,85.608,85.531,57.31002465]
[1646596887504,5.843,85.607,85.531,57.31002465]
[1646596887699,5.843,85.607,85.54,17.5355]
[1646596887902,5.843,85.607,85.54,31.5855]
[1646596888102,1.56882769,85.614,85.54,31.5855]
[1646596888501,1.56882769,85.613,85.54,31.5855]
[1646596889200,1.56882769,85.612,85.54,31.5855]
[1646596889401,1.56882769,85.605,85.54,31.5855]
[1646596889603,1.56882769,85.603,85.54,31.5855]
[1646596889802,1.56882769,85.605,85.54,31.5855]
[1646596890001,1.56882769,85.603,85.54,31.5855]
[1646596890201,1.56882769,85.602,85.54,31.5855]
[1646596891302,1.56882769,85.605,85.54,31.5855]
[1646596891501,5.841,85.604,85.54,31.5855]
[1646596891902,1.56882769,85.6,85.54,31.5855]
[1646596892506,1.56882769,85.593,85.54,31.5855]
[1646596892704,1.56882769,85.593,85.541,116.2]
[1646596892908,1.56882769,85.593,85.551,116.2]
[1646596893107,1.56882769,85.606,85.551,116.2]
[1646596893305,1.56882769,85.611,85.551,116.2]
[1646596893504,1.56882769,85.611,85.55,14.05]
[1646596893705,1.56882769,85.61,85.55,14.05]
[1646596893905,27.33087656,85.634,85.55,14.05]
[1646596893906,1.56882769,85.611,85.55,14.05]
[1646596894205,1.56882769,85.606,85.55,14.05]
[1646596894405,1.56882769,85.604,85.55,14.05]
[1646596895008,1.56882769,85.591,85.55,14.05]
[1646596895409,1.56882769,85.59,85.55,14.05]
[1646596895605,1.56882769,85.588,85.55,14.05]
[1646596895809,8.99327656,85.612,85.531,57.31002465]
[1646596895810,1.56882769,85.585,85.531,57.31002465]
[1646596896009,1.56882769,85.583,85.531,57.31002465]
[1646596896209,1.56882769,85.582,85.531,57.31002465]
[1646596896408,1.56882769,85.574,85.531,57.31002465]
[1646596896606,1.56882769,85.574,85.444,4.92580572]
[1646596896607,1.56882769,85.566,85.5,14.05]
[1646596896806,1.56882769,85.566,85.5,31.5948]
[1646596897007,1.56882769,85.553,85.5,31.5948]
[1646596897407,1.56882769,85.552,85.5,14.05]
[1646596897606,1.56882769,85.551,85.505,51.98583532]
[1646596897806,5.846,85.574,85.505,51.98583532]
[1646596897807,1.56882769,85.55,85.505,51.98583532]
[1646596898013,1.56882769,85.546,85.5,14.05]
[1646596898209,116.2,85.571,85.492,47.0557]
[1646596898210,1.56882769,85.538,85.492,47.0557]
[1646596898407,1.56882769,85.535,85.492,47.0557]
[1646596898607,1.56882769,85.536,85.492,47.0557]
[1646596899011,1.56882769,85.522,85.493,52.16204387]
[1646596899609,1.56882769,85.521,85.493,52.16204387]
[1646596899809,1.56882769,85.525,85.493,52.16204387]
[1646596900010,1.56882769,85.527,85.493,52.16204387]
[1646596900210,1.56882769,85.53,85.493,52.16204387]
[1646596900410,1.56882769,85.532,85.5,17.5449]
[1646596900611,1.56882769,85.531,85.5,17.5449]
[1646596901512,1.56882769,85.531,85.493,52.16204387]
[1646596901809,1.56882769,85.53,85.493,52.16204387]
[1646596902010,1.56882769,85.527,85.493,52.16204387]
[1646596902310,1.56882769,85.526,85.493,52.16204387]
[1646596902712,1.56882769,85.526,85.494,116.2]
[1646596903118,1.56882769,85.527,85.493,52.16204387]
[1646596904012,1.56882769,85.528,85.493,52.16204387]
[1646596904212,1.56882769,85.529,85.493,52.16204387]
[1646596905215,1.56882769,85.528,85.493,52.16204387]
[1646596905415,1.56882769,85.527,85.493,52.16204387]
[1646596905720,1.56882769,85.526,85.493,52.16204387]
[1646596905914,1.56882769,85.525,85.493,52.16204387]
[1646596906716,1.56882769,85.526,85.493,52.16204387]
[1646596906915,1.56882769,85.521,85.493,52.16204387]
[1646596907115,1.56882769,85.52,85.493,52.16204387]
[1646596907318,1.56882769,85.522,85.493,52.16204387]
[1646596907616,1.56882769,85.521,85.493,52.16204387]
[1646596908016,1.56882769,85.521,85.487,23.2531]
[1646596908218,1.56882769,85.52,85.487,23.2531]
[1646596909017,1.56882769,85.522,85.492,45.498209]
[1646596909419,1.56882769,85.521,85.492,45.498209]
[1646596910119,1.56882769,85.523,85.492,45.498209]
[1646596910319,1.56882769,85.522,85.492,45.498209]
[1646596910722,1.56882769,85.523,85.492,45.498209]
[1646596911521,1.56882769,85.524,85.492,45.498209]
[1646596911922,1.56882769,85.525,85.492,45.498209]
[1646596912945,1.56882769,85.526,85.492,45.498209]
[1646596913524,1.56882769,85.53,85.492,45.498209]
[1646596914925,1.56882769,85.531,85.492,45.498209]
[1646596915727,1.56882769,85.531,85.47,31.6026]
[1646596916030,1.56882769,85.531,85.45,58.5048]
[1646596916031,1.56882769,85.521,85.451,23.6703]
[1646596916228,1.56882769,85.51,85.451,23.6703]
[1646596916527,1.56882769,85.503,85.451,23.6703]
[1646596916728,17.5597,85.5,85.438,53.71068396]
[1646596917128,19.12852769,85.5,85.438,53.71068396]
[1646596917330,7.41782769,85.499,85.438,53.71068396]
[1646596917528,1.56882769,85.488,85.438,53.71068396]
[1646596917729,17.5663,85.48,85.438,53.71068396]
[1646596918328,7.41782769,85.489,85.438,53.71068396]
[1646596918728,5.849,85.489,85.438,53.71068396]
[1646596918929,5.849,85.49,85.438,53.71068396]
[1646596919128,1.56882769,85.489,85.438,53.71068396]
[1646596919332,5.849,85.488,85.4,14.05]
[1646596919629,5.851,85.49,85.401,22.8966]
[1646596919830,1.56882769,85.489,85.401,22.8966]
[1646596920031,5.851,85.488,85.401,22.8966]
[1646596920230,5.851,85.488,85.411,62.55641]
[1646596920454,5.851,85.493,85.411,62.55641]
[1646596921033,7.41982769,85.494,85.411,62.55641]
[1646596921432,1.56882769,85.493,85.43,17.5619]
[1646596921633,46.7385,85.508,85.43,17.5619]
[1646596921634,5.849,85.507,85.43,31.6119]
[1646596922035,46.7385,85.508,85.431,116.2]
[1646596922235,46.7385,85.508,85.432,0.56219458]
[1646596922435,1.56882769,85.518,85.45,17.5528]
[1646596922633,5.849,85.517,85.451,59.41356219]
[1646596922833,1.56882769,85.528,85.451,59.41356219]
[1646596923039,1.56882769,85.529,85.451,58.85136761]
[1646596923238,5.848,85.528,85.451,58.85136761]
[1646596923435,5.848,85.528,85.452,116.2]
[1646596923637,5.848,85.528,85.451,58.85136761]
[1646596923638,5.848,85.531,85.471,116.2]
[1646596923836,5.847,85.533,85.471,116.2]
[1646596924034,5.847,85.533,85.472,0.54061435]
[1646596924235,7.41582769,85.534,85.472,0.54061435]
[1646596924636,1.56882769,85.536,85.472,0.54061435]
[1646596924937,1.56882769,85.539,85.471,116.2]
[1646596925135,5.847,85.538,85.471,116.2]
[1646596925336,5.847,85.538,85.48,17.5494]
[1646596925536,5.847,85.538,85.481,61.65040855]
[1646596925736,1.56882769,85.537,85.482,0.54152611]
[1646596925939,1.56882769,85.535,85.481,61.65040855]
[1646596926146,5.847,85.534,85.481,61.65040855]
[1646596926439,1.56882769,85.533,85.481,61.65040855]
[1646596926640,5.847,85.532,85.481,61.65040855]
[1646596926839,1.56882769,85.532,85.481,61.65040855]
[1646596927438,17.5533,85.53,85.481,61.65040855]
[1646596928059,19.12212769,85.53,85.481,61.65040855]
[1646596929159,17.5533,85.53,85.481,61.65040855]
[1646596929960,1.56882769,85.53,85.481,61.65040855]
[1646596930761,1.56882769,85.531,85.49,17.55]
[1646596930961,1.56882769,85.53,85.49,17.55]
[1646596931762,1.56882769,85.53,85.481,61.65040855]
[1646596931963,1.56882769,85.529,85.481,61.65040855]
[1646596932964,1.56882769,85.528,85.49,17.5502]
[1646596933164,1.56882769,85.529,85.49,17.5502]
[1646596933365,1.56882769,85.535,85.49,17.5502]
[1646596933568,1.56882769,85.534,85.49,17.5502]
[1646596933969,1.56882769,85.533,85.49,17.5502]
[1646596934368,1.56882769,85.532,85.49,17.5502]
[1646596935668,1.56882769,85.531,85.49,17.5502]
[1646596935868,1.56882769,85.528,85.49,17.5502]
[1646596936268,1.56882769,85.532,85.49,17.5502]
[1646596936473,1.56882769,85.533,85.49,17.5502]
[1646596937070,1.56882769,85.532,85.49,17.5502]
[1646596937270,1.56882769,85.534,85.49,17.5502]
[1646596937470,1.56882769,85.535,85.49,17.5502]
[1646596937672,1.56882769,85.536,85.49,17.5502]
[1646596937875,1.56882769,85.535,85.49,17.5502]
[1646596938477,1.56882769,85.538,85.49,17.5502]
[1646596938675,1.56882769,85.537,85.49,17.5502]
[1646596939273,1.56882769,85.536,85.49,17.5502]
[1646596940075,1.56882769,85.54,85.49,17.5502]
[1646596941378,1.56882769,85.537,85.49,17.5502]
[1646596942178,1.56882769,85.538,85.49,17.5502]
[1646596942678,1.56882769,85.537,85.49,17.5502]
[1646596943079,1.56882769,85.538,85.49,17.5502]
[1646596943279,1.56882769,85.537,85.49,17.5502]
[1646596944583,1.56882769,85.536,85.49,17.5502]
[1646596944784,1.56882769,85.534,85.49,17.5502]
[1646596944985,1.56882769,85.534,85.47,14.05]
[1646596945186,1.56882769,85.534,85.453,49.1223]
[1646596945387,1.56882769,85.519,85.453,49.1223]
[1646596945587,5.848,85.518,85.453,49.1223]
[1646596945785,7.41682769,85.518,85.453,49.1223]
[1646596945986,5.848,85.518,85.454,58.47355859]
[1646596946791,1.56882769,85.517,85.454,58.47355859]
[1646596946988,5.848,85.516,85.454,58.47355859]
[1646596947188,5.848,85.516,85.46,17.5555]
[1646596947788,5.848,85.517,85.46,17.5555]
[1646596947989,1.56882769,85.516,85.46,17.5555]
[1646596948287,5.848,85.515,85.46,17.5555]
[1646596948687,1.56882769,85.516,85.46,17.5555]
[1646596950088,1.56882769,85.508,85.46,17.5555]
[1646596950691,1.56882769,85.508,85.461,116.2]
[1646596950889,1.56882769,85.508,85.46,34.4155]
[1646596950890,1.56882769,85.508,85.47,17.5468]
[1646596951090,1.56882769,85.512,85.471,0.58741082]
[1646596951290,1.56882769,85.524,85.471,0.58741082]
[1646596951489,1.56882769,85.524,85.47,16.86]
[1646596951490,1.56882769,85.524,85.472,29.3128]
[1646596951896,1.56882769,85.524,85.48,17.5475]
[1646596952094,1.56882769,85.524,85.49,16.86]
[1646596952289,1.56882769,85.524,85.491,0.57164491]
[1646596952491,1.56882769,85.525,85.492,5.847]
[1646596952989,1.56882769,85.524,85.491,5.847]
[1646596953191,1.56882769,85.525,85.491,5.847]
[1646596953390,6.39784132,85.555,85.491,5.847]
[1646596953391,1.56882769,85.529,85.491,5.847]
[1646596953894,0.00882769,85.529,85.5,17.547]
[1646596954090,6.39784132,85.557,85.5,17.547]
[1646596954289,5.89784132,85.557,85.501,23.5486]
[1646596954489,5.845,85.562,85.501,23.5486]
[1646596954692,5.845,85.562,85.51,17.5434]
[1646596954891,11.46851852,85.561,85.511,59.5295159]
[1646596955092,5.845,85.56,85.511,59.5295159]
[1646596955491,5.845,85.562,85.511,59.5295159]
[1646596955791,11.46851852,85.559,85.511,59.5295159]
[1646596955989,3.15027656,85.568,85.511,59.5295159]
[1646596955990,5.845,85.558,85.511,59.5295159]
[1646596956392,5.845,85.56,85.511,59.5295159]
[1646596956592,5.845,85.567,85.511,59.5295159]
[1646596956993,11.48085025,85.566,85.511,59.5295159]
[1646596957196,11.48085025,85.566,85.52,17.5431]
[1646596957394,11.48085025,85.567,85.52,17.5431]
[1646596957794,11.48085025,85.571,85.52,17.5431]
[1646596958194,11.48085025,85.572,85.52,17.5431]
[1646596958596,11.48085025,85.574,85.52,17.5431]
[1646596958996,11.48085025,85.575,85.521,5.844]
[1646596959195,11.48085025,85.575,85.53,17.5413]
[1646596959699,5.844,85.583,85.531,0.49214061]
[1646596959896,5.844,85.587,85.525,122.044]
[1646596960195,11.48694591,85.582,85.54,17.5373]
[1646596960397,11.48694591,85.582,85.541,59.21075256]
[1646596960695,11.48694591,85.591,85.541,59.21075256]
[1646596960895,3.15027656,85.597,85.541,53.36775256]
[1646596961095,3.15027656,85.603,85.541,53.36775256]
[1646596961297,11.4819152,85.596,85.541,53.36775256]
[1646596961496,5.843,85.595,85.55,17.5357]
[1646596961720,11.4819152,85.594,85.55,17.5357]
[1646596961898,5.843,85.593,85.55,17.5357]
[1646596962699,11.4819152,85.592,85.55,17.5357]
[1646596963497,11.4819152,85.606,85.55,17.5357]
[1646596963900,12.5499152,85.613,85.55,17.5357]
[1646596964307,11.4819152,85.612,85.55,17.5357]
[1646596964500,1.068,85.611,85.55,17.5357]
[1646596965101,29.0187152,85.61,85.55,17.5357]
[1646596965301,1.068,85.609,85.55,17.5357]
[1646596965502,12.5499152,85.609,85.55,17.5357]
[1646596965703,11.4819152,85.609,85.551,5.841]
[1646596966002,11.4819152,85.608,85.551,5.841]
[1646596966202,17.5385,85.6,85.551,5.841]
[1646596966402,17.5385,85.6,85.542,24.4252]
[1646596966602,17.3249152,85.599,85.542,24.4252]
[1646596967001,11.4819152,85.598,85.542,24.4252]
[1646596967202,5.843,85.597,85.542,24.4252]
[1646596967803,5.843,85.614,85.542,24.4252]
[1646596968404,11.46423033,85.613,85.542,24.4252]
[1646596968604,5.341,85.612,85.542,24.4252]
[1646596968806,17.5379,85.61,85.542,24.4252]
[1646596969006,5.841,85.609,85.542,24.4252]
[1646596969230,17.30523033,85.609,85.542,24.4252]
[1646596969634,11.46423033,85.608,85.542,24.4252]
[1646596969831,5.841,85.607,85.542,24.4252]
[1646596970431,11.46423033,85.606,85.542,24.4252]
[1646596970631,5.841,85.605,85.542,24.4252]
[1646596971033,17.5396,85.6,85.542,24.4252]
[1646596971234,5.843,85.599,85.542,24.4252]
[1646596971632,11.46423033,85.598,85.542,30.2682]
[1646596971831,11.46423033,85.598,85.55,17.5373]
[1646596972535,11.46423033,85.609,85.55,17.5373]
[1646596972732,11.46423033,85.609,85.551,116.2]
[1646596972934,11.46423033,85.614,85.56,17.5333]
[1646596973135,11.46423033,85.614,85.561,5.841]
[1646596973335,11.46423033,85.627,85.561,5.841]
[1646596973736,11.46423033,85.636,85.561,5.841]
[1646596973936,5.841,85.635,85.561,5.841]
[1646596974136,116.2,85.634,85.561,29.822]
[1646596974336,116.2,85.629,85.561,5.841]
[1646596974536,3.15027656,85.625,85.56,16.86]
[1646596974935,17.30523033,85.624,85.56,16.86]
[1646596975436,17.5399,85.61,85.56,16.86]
[1646596975637,5.841,85.609,85.56,16.86]
[1646596975837,17.30523033,85.609,85.56,16.86]
[1646596976237,11.46423033,85.608,85.56,16.86]
[1646596976438,5.841,85.607,85.56,16.86]
[1646596976839,5.841,85.609,85.56,16.86]
[1646596977240,5.841,85.619,85.56,16.86]
[1646596977641,5.841,85.624,85.56,34.3949]
[1646596977845,11.4475339,85.618,85.56,34.3949]
[1646596978042,5.841,85.617,85.56,34.3949]
[1646596978442,5.841,85.619,85.56,34.3949]
[1646596978643,11.4475339,85.616,85.56,34.3949]
[1646596978843,5.841,85.615,85.56,34.3949]
[1646596979343,5.841,85.619,85.56,34.3949]
[1646596979742,17.5355,85.62,85.56,34.3949]
[1646596979942,3.15027656,85.632,85.561,116.2]
[1646596980146,24.0857,85.633,85.58,17.5307]
[1646596980347,11.45589491,85.631,85.581,61.32270678]
[1646596980747,3.15027656,85.632,85.581,61.32270678]
[1646596980944,17.5323,85.63,85.581,61.32270678]
[1646596981346,5.84,85.629,85.581,61.32270678]
[1646596982950,3.15027656,85.628,85.581,61.32270678]
[1646596983149,8.99027656,85.627,85.581,61.32270678]
[1646596983348,5.84,85.627,85.581,61.32270678]
[1646596983549,8.99027656,85.627,85.581,61.32270678]
[1646596984148,5.84,85.627,85.581,61.32270678]
[1646596984855,8.99027656,85.627,85.581,61.32270678]
[1646596985250,5.84,85.627,85.561,24.5583]
[1646596985453,17.5346,85.62,85.562,5.841]
[1646596986254,3.15027656,85.622,85.562,5.841]
[1646596986454,3.15027656,85.624,85.563,46.19986426]
[1646596986653,8.99127656,85.623,85.564,5.841]
[1646596987254,3.15027656,85.622,85.57,17.533]
[1646596987453,5.841,85.621,85.57,17.533]
[1646596988058,3.15027656,85.62,85.57,17.533]
[1646596988257,3.15027656,85.619,85.57,17.533]
[1646596990760,3.15027656,85.623,85.57,17.533]
[1646596990961,3.15027656,85.623,85.572,116.2]
[1646596991161,3.15027656,85.625,85.58,17.5287]
[1646596991363,3.15027656,85.63,85.58,17.5287]
[1646596991661,3.15027656,85.631,85.58,17.5287]
[1646596992060,3.15027656,85.63,85.58,17.5287]
[1646596992861,3.15027656,85.629,85.58,17.5287]
[1646596993065,3.15027656,85.63,85.58,17.5287]
[1646596994160,5.84,85.629,85.58,17.5287]
[1646596996078,17.5315,85.64,85.58,17.5287]
[1646596996079,3.15027656,85.63,85.58,17.5287]
[1646596996279,5.84,85.629,85.58,17.5287]
[1646596996678,5.84,85.629,85.573,23.2259]
[1646596996879,17.5343,85.62,85.57,16.86]
[1646596997081,17.5343,85.62,85.564,5.841]
[1646596997279,23.3753,85.62,85.564,5.841]
[1646596997478,3.15027656,85.617,85.564,5.841]
[1646596997880,3.15027656,85.615,85.564,5.841]
[1646596998087,17.5374,85.61,85.564,5.841]
[1646596998282,5.841,85.609,85.564,5.841]
[1646596998482,8.99127656,85.609,85.564,5.841]
[1646596998686,3.15027656,85.609,85.564,5.841]
[1646596999083,8.99127656,85.608,85.564,5.841]
[1646596999284,3.15027656,85.608,85.564,5.841]
[1646596999884,5.841,85.607,85.564,5.841]
[1646597000085,116.2,85.606,85.541,57.84584641]
[1646597000286,17.5395,85.6,85.541,57.84584641]
[1646597001086,23.3825,85.6,85.541,57.84584641]
[1646597002085,3.15027656,85.599,85.541,57.84584641]
[1646597002285,5.843,85.598,85.541,57.84584641]
[1646597002585,17.5406,85.59,85.541,57.84584641]
[1646597003789,5.843,85.597,85.541,57.84584641]
[1646597003988,5.843,85.598,85.541,57.84584641]
[1646597004390,5.843,85.598,85.527,24.5708]
[1646597004589,8.99327656,85.598,85.53,17.5419]
[1646597005290,17.5406,85.59,85.531,50.51601003]
[1646597006793,5.843,85.589,85.531,50.51601003]
[1646597007195,5.843,85.589,85.532,5.843]
[1646597007393,5.843,85.589,85.54,17.5399]
[1646597008295,5.843,85.589,85.532,5.843]
[1646597008498,5.843,85.589,85.531,50.51601003]
[1646597010096,5.843,85.589,85.54,17.54]
[1646597011497,11.49015475,85.588,85.54,17.54]
[1646597011698,5.843,85.587,85.54,17.54]
[1646597012598,5.843,85.597,85.54,17.54]
[1646597012998,5.843,85.598,85.54,17.54]
[1646597013198,11.50009565,85.596,85.54,17.54]
[1646597013400,5.843,85.595,85.54,17.54]
[1646597013897,5.843,85.596,85.54,17.54]
[1646597014098,11.50009565,85.594,85.54,17.54]
[1646597014297,5.843,85.593,85.54,17.54]
[1646597014697,5.843,85.594,85.54,17.54]
[1646597014899,11.50009565,85.592,85.54,17.54]
[1646597015108,5.843,85.591,85.54,17.54]
[1646597015598,5.843,85.592,85.54,17.54]
[1646597015798,29.04069565,85.59,85.54,17.54]
[1646597016202,11.50009565,85.589,85.54,17.54]
[1646597018102,17.5406,85.59,85.54,17.54]
[1646597018103,5.843,85.602,85.541,5.843]
[1646597018302,3.15027656,85.606,85.55,17.5379]
[1646597018504,11.51395867,85.601,85.551,0.57559622]
[1646597018903,11.51395867,85.608,85.544,0.57559622]
[1646597019102,11.51395867,85.608,85.545,5.841]
[1646597019302,11.51395867,85.608,85.56,17.5351]
[1646597019502,11.51395867,85.608,85.561,61.18508507]
[1646597019902,14.66423523,85.615,85.561,61.18508507]
[1646597020101,17.5365,85.61,85.561,61.18508507]
[1646597020303,5.841,85.609,85.561,61.18508507]
[1646597020502,5.841,85.613,85.561,61.18508507]
[1646597020704,11.51395867,85.608,85.561,61.18508507]
[1646597021103,11.51395867,85.612,85.561,61.18508507]
[1646597021308,5.841,85.611,85.561,61.18508507]
[1646597021703,5.841,85.614,85.561,61.18508507]
[1646597021902,11.51395867,85.61,85.561,61.18508507]
[1646597022305,14.66423523,85.615,85.561,61.18508507]
[1646597022705,116.2,85.613,85.553,5.841]
[1646597022904,17.5367,85.61,85.542,5.841]
[1646597023104,5.841,85.609,85.542,5.841]
[1646597023306,5.841,85.609,85.541,5.841]
[1646597023505,11.51395867,85.608,85.541,5.841]
[1646597023705,11.51395867,85.608,85.544,53.36665804]
[1646597023908,14.66423523,85.608,85.544,53.36665804]
[1646597024105,5.841,85.607,85.544,47.52565804]
[1646597024305,3.15027656,85.606,85.544,47.52565804]
[1646597024506,5.841,85.605,85.544,47.52565804]
[1646597024705,17.35495867,85.605,85.544,47.52565804]
[1646597024905,20.50523523,85.605,85.544,47.52565804]
[1646597025110,17.5393,85.6,85.544,47.52565804]
[1646597025507,11.51395867,85.599,85.544,47.52565804]
[1646597026206,14.66423523,85.599,85.544,47.52565804]
[1646597026411,3.15027656,85.598,85.544,47.52565804]
[1646597026808,11.51395867,85.597,85.544,47.52565804]
[1646597027509,11.51395867,85.598,85.544,47.52565804]
[1646597028210,11.51395867,85.598,85.55,17.538]
[1646597028611,11.51395867,85.598,85.545,5.843]
[1646597029710,14.66423523,85.598,85.545,5.843]
[1646597029910,11.51395867,85.597,85.545,5.843]
[1646597030512,17.5407,85.59,85.545,5.843]
[1646597030912,11.51395867,85.589,85.545,5.843]
[1646597031712,11.51395867,85.594,85.545,5.843]
[1646597032715,11.51395867,85.594,85.55,17.5379]
[1646597033813,11.51395867,85.594,85.545,5.843]
[1646597034016,17.5407,85.59,85.545,5.843]
[1646597034516,11.51395867,85.589,85.545,5.843]
[1646597035318,11.51395867,85.593,85.545,5.843]
[1646597036116,3.15027656,85.611,85.545,5.843]
[1646597036316,3.15027656,85.611,85.55,17.5377]
[1646597036519,11.52117299,85.61,85.55,17.5377]
[1646597036738,14.67144955,85.61,85.55,17.5377]
[1646597037016,11.52117299,85.612,85.55,17.5377]
[1646597038217,17.5364,85.61,85.55,17.5377]
[1646597038617,11.52117299,85.609,85.55,17.5377]
[1646597039020,5.841,85.608,85.55,17.5377]
[1646597039417,11.52117299,85.607,85.55,17.5377]
[1646597039618,17.5388,85.6,85.55,17.5377]
[1646597039817,17.5388,85.6,85.546,24.047]
[1646597040221,127.72117299,85.599,85.545,5.843]
[1646597040420,116.2,85.597,85.545,5.843]
[1646597040620,17.5443,85.59,85.545,5.843]
[1646597040822,17.5443,85.59,85.516,47.0434]
[1646597041019,2.63628735,85.589,85.516,47.0434]